fUST/lending_fUST_20250607
["ID","MTS","AMOUNT","RATE_DAILY","PERIOD"]
[364925924,1749304243016,-1000.0,0.00022081,2]
[364925925,1749304243027,-1000.0,0.00022112,2]
[364925926,1749304243036,-500.0,0.00022124,2]
[364925927,1749304243046,-500.0,0.00022124,2]
[364925928,1749304243058,-500.0,0.00022124,2]
[364925930,1749304243067,-502.05892943,0.00022124,2]
[364925932,1749304243077,-500.0,0.00022124,2]
[364925934,1749304243086,-500.0,0.00022124,2]
[364925937,1749304243096,-500.0,0.00022124,2]
[364925938,1749304243106,-500.0,0.00022124,2]
[364925939,1749304243115,-200.8465109,0.00022124,2]
[364925940,1749304243125,-1372.27009303,0.00022141,6]
[364925941,1749304243134,-468.97,0.00022191,2]
[364925942,1749304243144,-440.0,0.00022191,2]
[364925943,1749304243153,-440.0,0.00022191,2]
[364925944,1749304243164,-683.28,0.00022191,2]
[364925945,1749304243174,-440.0,0.00022191,2]
[364925946,1749304243188,-1450.09,0.00022191,2]
[364925947,1749304243198,-440.0,0.00022191,2]
[364925948,1749304243212,-836.59,0.00022191,2]
[364925949,1749304243226,-475.6,0.00022191,2]
[364925950,1749304243239,-209.88,0.00022191,2]
[364925951,1749304243253,-440.0,0.00022191,2]
[364925952,1749304243266,-932.76,0.00022191,2]
[364925953,1749304243279,-1089.72,0.00022191,2]
[364925954,1749304243292,-440.0,0.00022191,2]
[364925955,1749304243303,-1565.57,0.00022191,2]
[364925956,1749304243315,-440.0,0.00022191,2]
[364925957,1749304243328,-2087.18,0.00022191,2]
[364925958,1749304243340,-1252.88,0.00022191,2]
[364925959,1749304243353,-440.0,0.00022191,2]
[364925960,1749304243365,-574.46,0.00022191,2]
[364925961,1749304243379,-793.39,0.00022191,2]
[364925962,1749304243392,-180.23566637,0.000222,69]
[364925963,1749304243405,-180.23566636,0.000222,69]
[364925964,1749304243418,-1372.27009303,0.00022279,6]
[364925965,1749304243431,-228.46715,0.00022314,7]
[364925966,1749304243443,-228.46715,0.00022314,7]
[364925967,1749304243456,-542.9,0.000224,2]
[364925968,1749304243468,-773.21,0.000224,7]
[364925969,1749304243482,-1372.27009303,0.00022417,7]
[364925970,1749304243494,-500.0,0.0002245,2]
[364925971,1749304243507,-500.0,0.0002245,2]
[364925972,1749304243519,-468.97,0.00022465,2]
[364925973,1749304243532,-440.0,0.00022465,2]
[364925974,1749304243544,-440.0,0.00022465,2]
[364925975,1749304243557,-683.28,0.00022465,2]
[364925976,1749304243570,-440.0,0.00022465,2]
[364925977,1749304243583,-1450.09,0.00022465,2]
[364925978,1749304243596,-440.0,0.00022465,2]
[364925979,1749304243609,-836.59,0.00022465,2]
[364925980,1749304243622,-475.6,0.00022465,2]
[364925981,1749304243634,-500.0,0.00022465,2]
[364925982,1749304243645,-440.0,0.00022465,2]
[364925983,1749304243658,-932.76,0.00022465,2]
[364925984,1749304243669,-1089.72,0.00022465,2]
[364925985,1749304243680,-440.0,0.00022465,2]
[364925986,1749304243691,-1565.57,0.00022465,2]
[364925987,1749304243702,-440.0,0.00022465,2]
[364925988,1749304243715,-2087.18,0.00022465,2]
[364925989,1749304243727,-1252.88,0.00022465,2]
[364925990,1749304243738,-440.0,0.00022465,2]
[364925991,1749304243751,-574.46,0.00022465,2]
[364925992,1749304243763,-793.39,0.00022465,2]
[364925993,1749304243775,-5000.0,0.00022514,2]
[364925994,1749304243790,-1372.27009303,0.00022555,7]
[364925995,1749304243804,-249.77739012,0.0002257,2]
[364925996,1749304243816,-1727.05,0.000226,7]
[364925997,1749304243830,-1500.0,0.00022629,2]
[364925998,1749304243843,-501.54911396,0.0002266,2]
[364925999,1749304243857,-1036.43297428,0.00022671,2]
[364926000,1749304243868,-1000.0,0.00022671,2]
[364926001,1749304243883,-500.0,0.00022671,2]
[364926002,1749304243894,-1000.0,0.00022671,2]
[364926003,1749304243906,-1000.0,0.00022671,2]
[364926004,1749304243916,-1372.27009303,0.00022693,7]
[364926005,1749304243927,-180.23566636,0.00022722,71]
[364926006,1749304243937,-228.46715,0.00022739,7]
[364926007,1749304243948,-228.46715,0.00022739,7]
[364926008,1749304243959,-468.97,0.00022739,2]
[364926009,1749304243971,-440.0,0.00022739,2]
[364926010,1749304243983,-440.0,0.00022739,2]
[364926011,1749304243997,-683.28,0.00022739,2]
[364926012,1749304244009,-440.0,0.00022739,2]
[364926013,1749304244022,-1450.09,0.00022739,2]
[364926014,1749304244033,-440.0,0.00022739,2]
[364926015,1749304244044,-836.59,0.00022739,2]
[364926016,1749304244055,-475.6,0.00022739,2]
[364926017,1749304244068,-440.0,0.00022739,2]
[364926018,1749304244079,-932.76,0.00022739,2]
[364926019,1749304244091,-1089.72,0.00022739,2]
[364926020,1749304244104,-440.0,0.00022739,2]
[364926021,1749304244116,-1565.57,0.00022739,2]
[364926022,1749304244129,-440.0,0.00022739,2]
[364926023,1749304244142,-2087.18,0.00022739,2]
[364926024,1749304244154,-1252.88,0.00022739,2]
[364926025,1749304244166,-440.0,0.00022739,2]
[364926026,1749304244177,-574.46,0.00022739,2]
[364926027,1749304244192,-793.39,0.00022739,2]
[364926028,1749304244204,-215.0738,0.00022787,2]
[364926029,1749304244215,-1372.27009303,0.00022831,8]
[364926030,1749304244227,-3640.86,0.00022861,2]
[364926031,1749304244238,-800.0,0.00022865,2]
[364926032,1749304244250,-857.60341243,0.00022968,2]
[364926033,1749304244265,-1372.27009303,0.00022969,8]
[364926034,1749304244285,-1000.0,0.00022998,2]
[364926035,1749304244297,-1000.0,0.00023,23]
[364926036,1749304244309,-171.0,0.00023,7]
[364926037,1749304244320,-468.97,0.00023013,2]
[364926038,1749304244331,-440.0,0.00023013,2]
[364926039,1749304244342,-312.42094253,0.00023013,2]
[364926040,1749304244453,-127.57905747,0.00023013,2]
[364926041,1749304244464,-683.28,0.00023013,2]
[364926042,1749304244476,-440.0,0.00023013,2]
[364926043,1749304244488,-1450.09,0.00023013,2]
[364926044,1749304244499,-440.0,0.00023013,2]
[364926045,1749304244510,-836.59,0.00023013,2]
[364926046,1749304244522,-475.6,0.00023013,2]
[364926047,1749304244533,-504.7392332,0.00023013,2]
[364926048,1749304244546,-440.0,0.00023013,2]
[364926049,1749304244558,-932.76,0.00023013,2]
[364926050,1749304244570,-1089.72,0.00023013,2]
[364926051,1749304244583,-440.0,0.00023013,2]
[364926052,1749304244595,-1565.57,0.00023013,2]
[364926053,1749304244607,-541.59,0.00023013,2]
[364926054,1749304244618,-2087.18,0.00023013,2]
[364926055,1749304244630,-1252.88,0.00023013,2]
[364926056,1749304244641,-440.0,0.00023013,2]
[364926057,1749304244653,-574.46,0.00023013,2]
[364926058,1749304244663,-793.39,0.00023013,2]
[364926059,1749304244676,-156.9909581,0.00023014,2]
[364926060,1749304244687,-600.0,0.00023047,2]
[364926061,1749304244698,-509.12200336,0.00023072,8]
[364926062,1749304244709,-500.0,0.00023084,2]
[364926063,1749304244721,-1372.27009303,0.00023107,8]
[364926064,1749304244733,-1000.0,0.00023118,5]
[364926065,1749304244745,-1000.0,0.00023177,2]
[364926066,1749304244755,-1500.0,0.00023219,2]
[364926067,1749304244767,-1372.27009303,0.00023245,8]
[364926068,1749304244779,-200.0,0.00023287,2]
[364926069,1749304244790,-200.0,0.00023287,2]
[364926070,1749304244802,-200.0,0.00023287,2]
[364926071,1749304244814,-200.0,0.00023287,2]
[364926072,1749304244825,-200.0,0.00023287,2]
[364926073,1749304244836,-200.0,0.00023287,2]
[364926074,1749304244847,-200.0,0.00023287,2]
[364926075,1749304244858,-200.0,0.00023287,2]
[364926076,1749304244869,-200.0,0.00023287,2]
[364926077,1749304244880,-200.0,0.00023287,2]
[364926078,1749304244891,-200.0,0.00023287,2]
[364926079,1749304244903,-200.0,0.00023287,2]
[364926080,1749304244914,-200.0,0.00023287,2]
[364926081,1749304244926,-200.0,0.00023287,2]
[364926082,1749304244938,-200.0,0.00023287,2]
[364926083,1749304244949,-200.0,0.00023287,2]
[364926084,1749304244960,-468.97,0.00023287,2]
[364926085,1749304244972,-440.0,0.00023287,2]
[364926086,1749304244983,-440.0,0.00023287,2]
[364926087,1749304244995,-238.44980023,0.00023287,2]
[364926088,1749304245006,-683.28,0.00023287,2]
[364926089,1749304245017,-440.0,0.00023287,2]
[364926090,1749304245028,-1450.09,0.00023287,2]
[364926091,1749304245040,-440.0,0.00023287,2]
[364926092,1749304245051,-836.59,0.00023287,2]
[364926093,1749304245063,-475.6,0.00023287,2]
[364926094,1749304245074,-440.0,0.00023287,2]
[364926095,1749304245085,-932.76,0.00023287,2]
[364926096,1749304245096,-1089.72,0.00023287,2]
[364926097,1749304245107,-356.35,0.00023287,2]
[364926098,1749304245119,-1565.57,0.00023287,2]
[364926099,1749304245131,-934.09467727,0.00023287,2]
[364926107,1749304246223,-482.7826615,0.00023287,2]
[364926108,1749304246237,-670.30266123,0.00023287,2]
[364926109,1749304246246,-1252.88,0.00023287,2]
[364926110,1749304246257,-440.0,0.00023287,2]
[364926111,1749304246266,-574.46,0.00023287,2]
[364926112,1749304246276,-793.39,0.00023287,2]
[364926113,1749304246286,-151.0,0.000233,6]
[364926114,1749304246296,-156.9909581,0.00023315,2]
[364926115,1749304246305,-193.48630512,0.00023366,2]
[364926116,1749304246315,-1372.27009303,0.00023383,9]
[364926117,1749304246325,-689.83648,0.0002352,3]
[364926118,1749304246336,-1372.27009303,0.00023521,9]
[364926119,1749304246345,-473.87128663,0.00023546,2]
[364926120,1749304246355,-186.81285346,0.00023561,2]
[364926121,1749304246365,-440.0,0.00023561,2]
[364926122,1749304246375,-440.0,0.00023561,2]
[364926123,1749304246385,-683.28,0.00023561,2]
[364926124,1749304246396,-440.0,0.00023561,2]
[364926125,1749304246406,-1450.09,0.00023561,2]
[364926126,1749304246417,-440.0,0.00023561,2]
[364926127,1749304246427,-836.59,0.00023561,2]
[364926128,1749304246437,-475.6,0.00023561,2]
[364926129,1749304246447,-440.0,0.00023561,2]
[364926130,1749304246456,-932.76,0.00023561,2]
[364926131,1749304246466,-1089.72,0.00023561,2]
[364926132,1749304246476,-1565.57,0.00023561,2]
[364926133,1749304246486,-2087.18,0.00023561,2]
[364926134,1749304246496,-1252.88,0.00023561,2]
[364926135,1749304246506,-440.0,0.00023561,2]
[364926136,1749304246517,-574.46,0.00023561,2]
[364926137,1749304246527,-793.39,0.00023561,2]
[364926138,1749304246538,-151.0,0.000236,8]
[364926139,1749304246548,-151.0,0.000236,8]
[364926140,1749304246557,-156.9909581,0.00023616,2]
[364926141,1749304246567,-1372.27009303,0.00023659,9]
[364926142,1749304246577,-500.0,0.00023683,2]
[364926143,1749304246587,-151.153671,0.000237,7]
[364926144,1749304246597,-773.21,0.000237,7]
[364926145,1749304246607,-228.46715,0.000237,7]
[364926146,1749304246617,-228.46715,0.000237,7]
[364926147,1749304246627,-500.09728342,0.00023714,2]
[364926148,1749304246637,-500.0,0.00023767,2]
[364926149,1749304246646,-3476.965885,0.00023768,2]
[364926150,1749304246656,-3476.965885,0.00023768,2]
[364926151,1749304246666,-228.46715,0.0002378,7]
[364926152,1749304246675,-228.46715,0.0002378,7]
[364926153,1749304246685,-500.0,0.0002379,2]
[364926154,1749304246695,-1372.27009303,0.00023797,9]
[364926155,1749304246705,-157.478414,0.00023817,7]
[364926156,1749304246715,-157.478414,0.00023817,7]
[364926157,1749304246725,-200.0,0.00023817,7]
[364926158,1749304246734,-201.38427359,0.00023817,7]
[364926159,1749304246744,-207.79,0.00023835,2]
[364926160,1749304246754,-440.0,0.00023835,2]
[364926161,1749304246764,-683.28,0.00023835,2]
[364926162,1749304246775,-440.0,0.00023835,2]
[364926163,1749304246786,-1450.09,0.00023835,2]
[364926164,1749304246798,-440.0,0.00023835,2]
[364926165,1749304246808,-836.59,0.00023835,2]
[364926166,1749304246819,-475.6,0.00023835,2]
[364926167,1749304246829,-344.45924313,0.00023835,2]
[364926168,1749304246839,-932.76,0.00023835,2]
[364926169,1749304246849,-1089.72,0.00023835,2]
[364926170,1749304246858,-1565.57,0.00023835,2]
[364926171,1749304246868,-2087.18,0.00023835,2]
[364926172,1749304246877,-1252.88,0.00023835,2]
[364926173,1749304246886,-440.0,0.00023835,2]
[364926174,1749304246896,-574.46,0.00023835,2]
[364926175,1749304246905,-793.39,0.00023835,2]
[364926176,1749304246915,-153.0,0.00023836,2]
[364926177,1749304246925,-153.0,0.00023836,2]
[364926178,1749304246934,-153.0,0.00023836,2]
[364926179,1749304246944,-213.99632772,0.00023898,2]
[364926180,1749304246954,-151.0,0.000239,7]
[364926181,1749304246963,-151.0,0.000239,6]
[364926182,1749304246973,-1727.05,0.000239,7]
[364926183,1749304246982,-857.60341243,0.000239,2]
[364926184,1749304246991,-156.9909581,0.00023918,2]
[364926185,1749304247002,-1372.27009303,0.00023934,10]
[364926186,1749304247012,-158.415921,0.00023973,2]
[364926187,1749304247023,-8781.24973662,0.00023978,2]
[364926188,1749304247033,-5000.0,0.00023978,2]
[364926189,1749304247043,-5000.0,0.00023978,2]
[364926190,1749304247053,-5000.0,0.00023978,2]
[364926191,1749304247063,-5000.0,0.00023978,2]
[364926192,1749304247073,-1000.0,0.00023999,14]
[364926193,1749304247083,-19122.3446653,0.00024,2]
[364926194,1749304247095,-1559.91288325,0.00024,2]
[364926195,1749304247107,-302.10002581,0.00024,2]
[364926196,1749304247119,-892.3,0.00024,2]
[364926197,1749304247131,-8369.05433507,0.00024,2]
[364926198,1749304282587,219.14394931,0.00018603,2]
[364926201,1749304356817,3588.99,0.00024645,90]
[364926203,1749304949907,163.763366,0.00013699,2]
[364926206,1749305149683,300.0,0.00018999,2]
[364926207,1749305162490,300.0,0.00018999,2]
[364926208,1749305230159,-333.0,0.00019,2]
[364926209,1749305230183,-10922.40032436,0.00019,2]
[364926210,1749305289129,10000.0,0.00018246,2]
[364926211,1749305402387,300.0,0.00018999,2]
[364926212,1749305402825,300.0,0.00018999,2]
[364926213,1749305403214,300.0,0.00018999,2]
[364926215,1749305426009,2229.86620857,0.00025479,120]
[364926254,1749305432013,-2276.54990254,0.00019,2]
[364926255,1749305432219,-13723.45009746,0.00019,2]
[364926256,1749305432229,-7665.99240114,0.00019,2]
[364926257,1749305432239,-832.2736616,0.0001904,2]
[364926258,1749305432250,-187.98608535,0.00019078,2]
[364926259,1749305432261,-980.50190133,0.00019177,2]
[364926260,1749305432271,-500.0,0.00019177,2]
[364926262,1749305432281,-168.61603096,0.00019177,2]
[364926264,1749305432290,-500.0,0.00019177,2]
[364926265,1749305432299,-500.0,0.00019177,2]
[364926267,1749305432309,-500.0,0.00019177,2]
[364926268,1749305432321,-156.9977156,0.00019177,2]
[364926269,1749305432331,-500.0,0.00019177,2]
[364926270,1749305432341,-349.1237841,0.00019177,2]
[364926271,1749305432351,-487.58305725,0.00019177,2]
[364926272,1749305432361,-500.0,0.00019177,2]
[364926273,1749305432370,-500.0,0.00019177,2]
[364926274,1749305432380,-500.0,0.00019177,2]
[364926275,1749305432389,-500.0,0.00019177,2]
[364926276,1749305432398,-500.0,0.00019177,2]
[364926277,1749305432408,-500.0,0.00019177,2]
[364926278,1749305432417,-500.0,0.00019177,2]
[364926279,1749305432427,-500.0,0.00019177,2]
[364926280,1749305432436,-500.0,0.00019177,2]
[364926281,1749305432446,-648.61278887,0.00019177,2]
[364926282,1749305432455,-452.72415042,0.00019177,2]
[364926283,1749305432465,-440.0,0.00019178,2]
[364926284,1749305432475,-440.0,0.00019178,2]
[364926285,1749305432485,-440.0,0.00019178,2]
[364926286,1749305432496,-440.0,0.00019178,2]
[364926287,1749305432506,-440.0,0.00019178,2]
[364926288,1749305432516,-430.0,0.00019178,2]
[364926289,1749305432525,-440.0,0.00019178,2]
[364926290,1749305432535,-440.0,0.00019178,2]
[364926291,1749305432544,-440.0,0.00019178,2]
[364926292,1749305432553,-440.0,0.00019178,2]
[364926293,1749305432563,-440.0,0.00019178,2]
[364926294,1749305432573,-440.0,0.00019178,2]
[364926295,1749305432583,-456.55,0.00019178,2]
[364926296,1749305432592,-440.0,0.00019178,2]
[364926297,1749305432603,-875.66,0.00019178,2]
[364926298,1749305432613,-440.0,0.00019178,2]
[364926299,1749305432623,-521.8,0.00019178,2]
[364926300,1749305432635,-572.16,0.00019178,2]
[364926301,1749305432645,-457.39,0.00019178,2]
[364926302,1749305432655,-531.68,0.00019178,2]
[364926303,1749305432664,-440.0,0.00019178,2]
[364926304,1749305432674,-440.0,0.00019178,2]
[364926305,1749305432684,-440.0,0.00019178,2]
[364926306,1749305432694,-440.0,0.00019178,2]
[364926307,1749305432704,-440.0,0.00019178,2]
[364926308,1749305432714,-440.0,0.00019178,2]
[364926309,1749305432724,-440.0,0.00019178,2]
[364926310,1749305432733,-440.0,0.00019178,2]
[364926311,1749305432744,-425.17578235,0.00019178,2]
[364926312,1749305432753,-440.0,0.00019178,2]
[364926313,1749305432762,-440.0,0.00019178,2]
[364926314,1749305432772,-440.0,0.00019178,2]
[364926315,1749305432781,-440.0,0.00019178,2]
[364926316,1749305432791,-488.25,0.00019178,2]
[364926317,1749305432801,-440.0,0.00019178,2]
[364926318,1749305432814,-440.0,0.00019452,2]
[364926319,1749305432824,-440.0,0.00019452,2]
[364926320,1749305432834,-39.44058058,0.00019452,2]
[364926329,1749305437961,-440.0,0.00019178,2]
[364926330,1749305437973,-224.59941942,0.00019452,2]
[364926331,1749305437989,-456.55,0.00019452,2]
[364926332,1749305438000,-440.0,0.00019452,2]
[364926333,1749305438009,-875.66,0.00019452,2]
[364926334,1749305438021,-521.8,0.00019452,2]
[364926335,1749305438032,-572.16,0.00019452,2]
[364926336,1749305438042,-531.68,0.00019452,2]
[364926337,1749305438053,-294.84,0.00019452,2]
[364926338,1749305438062,-440.0,0.00019452,2]
[364926339,1749305438072,-440.0,0.00019452,2]
[364926340,1749305438081,-440.0,0.00019452,2]
[364926341,1749305438090,-440.0,0.00019452,2]
[364926342,1749305438100,-440.0,0.00019452,2]
[364926343,1749305438110,-440.0,0.00019452,2]
[364926344,1749305438119,-440.0,0.00019452,2]
[364926345,1749305438129,-440.0,0.00019452,2]
[364926346,1749305438138,-440.0,0.00019452,2]
[364926347,1749305438148,-421.84,0.00019452,2]
[364926348,1749305438158,-440.0,0.00019452,2]
[364926349,1749305438167,-467.0,0.00019726,2]
[364926350,1749305438177,-440.0,0.00019726,2]
[364926351,1749305438191,-456.55,0.00019726,2]
[364926352,1749305438200,-440.0,0.00019726,2]
[364926353,1749305438214,-875.66,0.00019726,2]
[364926354,1749305438227,-521.8,0.00019726,2]
[364926355,1749305438240,-572.16,0.00019726,2]
[364926356,1749305438252,-531.68,0.00019726,2]
[364926357,1749305438264,-440.0,0.00019726,2]
[364926358,1749305438277,-440.0,0.00019726,2]
[364926359,1749305438289,-440.0,0.00019726,2]
[364926360,1749305438301,-440.0,0.00019726,2]
[364926361,1749305438312,-440.0,0.00019726,2]
[364926362,1749305438322,-440.0,0.00019726,2]
[364926363,1749305438334,-440.0,0.00019726,2]
[364926364,1749305438344,-159.98,0.00019726,2]
[364926365,1749305438357,-440.0,0.00019726,2]
[364926366,1749305438369,-440.0,0.00019726,2]
[364926367,1749305438381,-755.04090524,0.000199,2]
[364926368,1749305438392,-500.0,0.00019909,2]
[364926369,1749305438403,-1364.11153655,0.00019988,2]
[364926370,1749305438416,-322.29,0.0002,2]
[364926371,1749305438428,-456.55,0.0002,2]
[364926372,1749305438439,-440.0,0.0002,2]
[364926373,1749305438452,-875.66,0.0002,2]
[364926374,1749305438464,-521.8,0.0002,2]
[364926375,1749305438475,-572.16,0.0002,2]
[364926376,1749305438487,-531.68,0.0002,2]
[364926377,1749305438499,-440.0,0.0002,2]
[364926378,1749305438512,-275.13,0.0002,2]
[364926379,1749305438527,-249.9,0.0002,2]
[364926380,1749305438540,-440.0,0.0002,2]
[364926381,1749305438558,-440.0,0.0002,2]
[364926382,1749305438574,-440.0,0.0002,2]
[364926383,1749305438588,-565.0,0.0002,2]
[364926384,1749305438600,-440.0,0.0002,2]
[364926385,1749305438613,-424.15,0.0002,2]
[364926386,1749305438625,-755.04090524,0.00020072,2]
[364926387,1749305438639,-302.109,0.000202,2]
[364926388,1749305438655,-755.04090524,0.00020245,2]
[364926389,1749305438666,-456.55,0.00020273,2]
[364926390,1749305438678,-166.49155596,0.00020273,2]
[364926391,1749305438690,-875.66,0.00020273,2]
[364926392,1749305438702,-521.8,0.00020273,2]
[364926393,1749305438713,-572.16,0.00020273,2]
[364926394,1749305438725,-531.68,0.00020273,2]
[364926395,1749305438737,-440.0,0.00020273,2]
[364926396,1749305438749,-440.0,0.00020273,2]
[364926397,1749305438761,-440.0,0.00020273,2]
[364926398,1749305438773,-440.0,0.00020273,2]
[364926399,1749305438784,-440.0,0.00020273,2]
[364926400,1749305438795,-842.5625,0.00020294,2]
[364926401,1749305438806,-229.56495552,0.00020294,2]
[364926402,1749305438820,-834.52263295,0.00020294,2]
[364926403,1749305438831,-213.01382694,0.00020294,2]
[364926404,1749305438843,-315.08178181,0.00020295,2]
[364926405,1749305438854,-755.04090524,0.00020417,3]
[364926406,1749305438864,-1200.0,0.000205,2]
[364926407,1749305438876,-456.55,0.00020547,2]
[364926408,1749305438888,-875.66,0.00020547,2]
[364926409,1749305438901,-521.8,0.00020547,2]
[364926410,1749305438913,-572.16,0.00020547,2]
[364926411,1749305438926,-531.68,0.00020547,2]
[364926412,1749305438938,-440.0,0.00020547,2]
[364926413,1749305438951,-440.0,0.00020547,2]
[364926414,1749305438963,-440.0,0.00020547,2]
[364926415,1749305438975,-258.50306123,0.00020547,2]
[364926416,1749305438986,-440.0,0.00020547,2]
[364926417,1749305438998,-666.0,0.00020548,2]
[364926418,1749305439009,-755.04090524,0.0002059,3]
[364926419,1749305439019,-755.04090524,0.00020762,3]
[364926420,1749305439033,-456.55,0.00020821,2]
[364926421,1749305439045,-875.66,0.00020821,2]
[364926422,1749305439056,-521.8,0.00020821,2]
[364926423,1749305439066,-572.16,0.00020821,2]
[364926424,1749305439076,-531.68,0.00020821,2]
[364926425,1749305439086,-440.0,0.00020821,2]
[364926426,1749305439097,-440.0,0.00020821,2]
[364926427,1749305439107,-440.0,0.00020821,2]
[364926428,1749305439118,-440.0,0.00020821,2]
[364926429,1749305439129,-500.0,0.00020855,2]
[364926430,1749305439140,-755.04090524,0.00020934,4]
[364926431,1749305439152,-202.7114113,0.00020977,2]
[364926432,1749305439163,-456.55,0.00021095,2]
[364926433,1749305439175,-875.66,0.00021095,2]
[364926434,1749305439188,-521.8,0.00021095,2]
[364926435,1749305439200,-572.16,0.00021095,2]
[364926436,1749305439212,-531.68,0.00021095,2]
[364926437,1749305439222,-440.0,0.00021095,2]
[364926438,1749305439233,-366.92,0.00021095,2]
[364926439,1749305439243,-440.0,0.00021095,2]
[364926440,1749305439253,-440.0,0.00021095,2]
[364926441,1749305439264,-541.24,0.000211,2]
[364926442,1749305439275,-755.04090524,0.00021107,4]
[364926443,1749305439287,-1789.16,0.0002119,2]
[364926444,1749305439297,-755.04090524,0.00021279,5]
[364926445,1749305439310,-456.55,0.00021369,2]
[364926446,1749305439321,-875.66,0.00021369,2]
[364926447,1749305439333,-521.8,0.00021369,2]
[364926448,1749305439344,-572.16,0.00021369,2]
[364926449,1749305439357,-531.68,0.00021369,2]
[364926450,1749305439367,-440.0,0.00021369,2]
[364926451,1749305439377,-440.0,0.00021369,2]
[364926452,1749305439388,-440.0,0.00021369,2]
[364926453,1749305439399,-755.04090524,0.00021452,5]
[364926454,1749305439410,-1300.0,0.000215,3]
[364926455,1749305439420,-336.58824217,0.0002159,2]
[364926456,1749305439432,-3000.0,0.000216,2]
[364926458,1749305439443,-3000.0,0.0002161,2]
[364926459,1749305439454,-3963.080659,0.0002162,2]
[364926460,1749305439465,-755.04090524,0.00021624,5]
[364926461,1749305439476,-207.4,0.00021638,2]
[364926462,1749305439487,-456.55,0.00021643,2]
[364926463,1749305439498,-875.66,0.00021643,2]
[364926464,1749305439509,-521.8,0.00021643,2]
[364926465,1749305439520,-572.16,0.00021643,2]
[364926466,1749305439532,-531.68,0.00021643,2]
[364926467,1749305439543,-440.0,0.00021643,2]
[364926468,1749305439554,-440.0,0.00021643,2]
[364926469,1749305439568,-440.0,0.00021643,2]
[364926470,1749305439579,-405.0,0.00021717,2]
[364926471,1749305439590,-755.04090524,0.00021797,6]
[364926472,1749305439601,-174.70801368,0.0002183,2]
[364926473,1749305439612,-3000.0,0.000219,2]
[364926474,1749305439623,-3000.0,0.0002191,2]
[364926475,1749305439634,-456.55,0.00021917,2]
[364926476,1749305439647,-875.66,0.00021917,2]
[364926477,1749305439659,-521.8,0.00021917,2]
[364926478,1749305439669,-572.16,0.00021917,2]
[364926479,1749305439696,-531.68,0.00021917,2]
[364926480,1749305439709,-440.0,0.00021917,2]
[364926481,1749305439723,-440.0,0.00021917,2]
[364926482,1749305439735,-382.83860008,0.00021917,2]
[364926483,1749305439748,-3000.0,0.0002192,2]
[364926485,1749305439759,-3000.0,0.0002193,2]
[364926486,1749305439771,-3000.0,0.0002194,2]
[364926487,1749305439784,-3000.0,0.0002195,2]
[364926488,1749305439797,-500.0,0.00021951,2]
[364926489,1749305439809,-3000.0,0.0002196,2]
[364926490,1749305439820,-755.04090524,0.00021969,6]
[364926491,1749305439831,-3000.0,0.0002197,2]
[364926492,1749305439844,-3000.0,0.0002198,2]